bitfinex-derivatives/quotes_ETHF0:USTF0_20250620
["timestamp","ask_amount","ask_price","bid_price","bid_amount"]
[1750398204357,0.79576,2513.1,2513.0,0.79575]
[1750398207065,0.86506781,2513.2,2513.1,0.79574]
[1750398207565,0.79577,2513.1,2513.0,0.79576]
[1750398213574,0.79581,2513.0,2512.9,6.188]
[1750398213761,0.79581,2513.0,2512.9,31.11381]
[1750398213762,1.45791,2513.0,2512.9,31.11381]
[1750398214362,0.6621,2513.0,2512.5,6.37807932]
[1750398214562,0.7959,2512.7,2512.6,1.44617]
[1750398214757,0.7959,2512.7,2512.6,0.6503]
[1750398215268,0.7959,2512.7,2512.6,1.4462]
[1750398215874,0.7959,2512.7,2512.6,0.6503]
[1750398216061,0.7959,2512.6,2512.5,27.3368]
[1750398216263,1.4563,2512.6,2512.5,28.13273]
[1750398218868,1.4563,2512.6,2512.5,27.3368]
[1750398219068,1.4563,2512.6,2512.5,28.13273]
[1750398220472,1.4563,2512.6,2512.5,31.30300932]
[1750398220974,0.79589,2512.7,2512.6,0.7959]
[1750398223374,0.79586,2512.8,2512.7,0.79585]
[1750398223676,1.95567212,2512.8,2512.7,0.79585]
[1750398224274,1.95567212,2512.8,2512.7,3.96612932]
[1750398225679,1.15981212,2512.8,2512.7,3.96612932]
[1750398225868,0.79581,2513.0,2512.9,0.7958]
[1750398226175,1.95533629,2513.0,2512.9,3.96607932]
[1750398227279,1.15952629,2513.0,2512.9,3.96607932]
[1750398228178,1.95530629,2513.0,2512.9,3.96607932]
[1750398228570,1.95530629,2513.0,2512.9,3.17027932]
[1750398230279,2.0246441,2513.0,2512.9,3.17027932]
[1750398232177,1.2288641,2513.0,2512.5,3.2078]
[1750398232381,1.95535629,2512.9,2512.8,0.79584]
[1750398232581,1.95529289,2512.9,2512.8,0.79584]
[1750398233381,1.95529289,2512.9,2512.7,3.96612932]
[1750398233382,0.79584,2512.8,2512.7,3.96612932]
[1750398235983,0.79584,2512.8,2512.7,3.17027932]
[1750398236282,0.79584,2512.8,2512.7,3.96614932]
[1750398242290,0.79583,2512.9,2512.8,0.79582]
[1750398242586,1.95625194,2512.9,2512.8,0.79582]
[1750398243177,1.95625194,2512.9,2512.8,1.44202]
[1750398246189,1.95623194,2512.9,2512.8,1.44202]
[1750398246591,1.16042194,2512.9,2512.8,1.44202]
[1750398247492,1.16042194,2512.9,2512.8,26.89562]
[1750398248589,0.79579,2513.0,2512.9,0.79578]
[1750398248794,1.95636686,2513.0,2512.9,0.79578]
[1750398249394,1.16057686,2513.0,2512.9,3.96605932]
[1750398249797,1.95635686,2513.0,2512.9,3.96605932]
[1750398250191,1.16057686,2513.0,2512.9,3.96605932]
[1750398252199,1.16057686,2513.0,2512.9,5.30405932]
[1750398252789,0.79572,2513.2,2513.1,0.79574]
[1750398252985,1.95586081,2513.3,2513.2,0.79571]
[1750398253189,1.95585603,2513.3,2513.2,1.46401]
[1750398253688,1.95585603,2513.3,2513.2,0.6683]
[1750398254092,1.95585603,2513.3,2513.2,1.46401]
[1750398255292,1.95585603,2513.3,2513.2,0.6683]
[1750398255598,1.95585603,2513.3,2513.2,1.46401]
[1750398256497,1.95585603,2513.3,2513.2,0.6683]
[1750398256997,0.79574,2513.1,2513.0,31.75635]
[1750398257201,1.95590603,2513.1,2513.0,0.79575]
[1750398257390,1.95590603,2513.1,2513.0,31.09575]
[1750398257789,0.79574,2513.1,2513.0,31.09575]
[1750398258492,0.79574,2513.1,2513.0,0.79575]
[1750398258893,1.95501691,2513.1,2513.0,0.79575]
[1750398259091,0.79574,2513.1,2513.0,0.79575]
[1750398259391,1.95501768,2513.1,2513.0,0.79575]
[1750398259695,0.79578,2513.0,2512.9,28.73726932]
[1750398260790,0.86509781,2513.1,2513.0,0.79578]
[1750398261496,0.06933781,2513.1,2513.0,0.79578]
[1750398261897,0.86507781,2513.1,2513.0,0.79578]
[1750398262092,0.06933781,2513.1,2513.0,0.79578]
[1750398262904,0.06933781,2513.1,2513.0,2.16808]
[1750398266202,0.86507781,2513.1,2513.0,2.16808]
[1750398266499,0.86507781,2513.1,2513.0,0.79578]
[1750398267200,0.06933781,2513.1,2513.0,0.79578]
[1750398267397,0.06933781,2513.1,2513.0,2.15868]
[1750398277811,0.06933781,2513.1,2513.0,0.79578]
[1750398278513,0.86507781,2513.1,2513.0,0.79578]
[1750398278913,0.86507781,2513.1,2513.0,31.08978]
[1750398279913,2.12507781,2513.1,2513.0,31.08978]
[1750398282224,2.12507781,2513.1,2513.0,24.90978]
[1750398285423,0.06933781,2513.1,2513.0,24.90978]
[1750398293424,0.06933781,2513.1,2513.0,26.17468]
[1750398297933,0.06933781,2513.1,2513.0,29.38248]
[1750398298336,0.06933781,2513.1,2513.0,32.55275932]
[1750398298633,0.06933781,2513.1,2513.0,29.38248]
[1750398301638,0.06933781,2513.1,2513.0,32.55275932]
[1750398301932,0.06933781,2513.1,2513.0,37.55275932]
[1750398302129,7.81e-06,2513.1,2513.0,37.55275932]
[1750398303727,3.2078,2514.0,2513.6,0.79559]
[1750398303929,3.2078,2514.0,2513.9,0.79549]
[1750398304133,4.36205123,2514.0,2513.9,24.90249]
[1750398304437,3.2078,2514.0,2513.9,24.90249]
[1750398305531,4.5536,2514.0,2513.9,24.90249]
[1750398306233,3.2078,2514.0,2513.9,0.79549]
[1750398306634,3.2078,2514.0,2513.9,31.07649]
[1750398307323,3.2078,2514.0,2513.9,6.97049]
[1750398307528,4.5172,2514.0,2513.9,31.07449]
[1750398309235,1.3094,2514.0,2513.9,31.07449]
[1750398310735,2.10486,2514.0,2513.9,31.07449]
[1750398310935,0.79549,2513.9,2513.8,6.174]
[1750398311133,2.69299,2513.9,2513.8,31.07152]
[1750398311439,2.69299,2513.9,2513.8,30.276]
[1750398312032,2.69299,2513.9,2513.8,6.174]
[1750398312237,2.69299,2513.9,2513.8,30.276]
[1750398313243,2.69299,2513.9,2513.8,31.07152]
[1750398315637,1.8975,2513.9,2513.8,31.07152]
[1750398318041,0.6711,2514.1,2514.0,0.79546]
[1750398318940,2.0073,2514.1,2514.0,0.79546]
[1750398319239,2.80273,2514.1,2514.0,0.79546]
[1750398319443,0.6711,2514.1,2514.0,0.79546]
[1750398319828,0.6571,2514.2,2514.1,0.79543]
[1750398320033,3.2078,2514.3,2514.2,0.7954]
[1750398321040,0.6375,2514.4,2514.3,0.79536]
[1750398321238,3.14031145,2514.4,2514.3,0.79536]
[1750398321542,1.9895,2514.4,2514.3,28.06463932]
[1750398322732,0.6729,2514.5,2514.4,0.79533]
[1750398323234,3.2078,2514.8,2514.4,0.79533]
[1750398323235,3.2078,2514.8,2514.7,0.79524]
[1750398323540,5.69758034,2514.8,2514.7,0.79524]
[1750398323735,4.547,2514.8,2514.7,0.79524]
[1750398323930,5.9039,2514.8,2514.7,0.79524]
[1750398326443,2.6961,2514.8,2514.7,0.79524]
[1750398328241,3.2078,2515.1,2515.0,0.79514]
[1750398328441,3.2078,2515.1,2515.0,3.96541932]
[1750398330047,3.2078,2515.1,2515.0,10.13441932]
[1750398330246,3.2078,2515.1,2515.0,11.48111932]
[1750398331243,3.2078,2515.5,2515.2,1.98768]
[1750398331449,3.2078,2515.5,2515.4,0.79502]
[1750398331835,4.4956,2515.5,2515.4,0.79502]
[1750398332243,1.2878,2515.5,2515.4,0.79502]
[1750398333550,4.4956,2515.5,2515.2,3.17027932]
[1750398333849,0.79502,2515.4,2515.3,0.79502]
[1750398334051,2.08282,2515.4,2515.3,0.79502]
[1750398335645,0.79507,2515.3,2515.2,0.79506]
[1750398335853,1.2878,2515.4,2515.0,6.8059]
[1750398336053,2.0594,2515.2,2515.1,0.79511]
[1750398336348,2.85448,2515.2,2515.1,0.79511]
[1750398336951,2.85448,2515.2,2514.7,1.9881]
[1750398336952,2.0594,2515.2,2514.7,1.9881]
[1750398337148,2.0089,2515.1,2514.8,9.33827932]
[1750398337546,2.0089,2515.1,2515.0,0.79514]
[1750398337746,0.6265,2515.1,2515.0,3.96541932]
[1750398338254,3.8848,2515.2,2515.1,0.79511]
[1750398338449,0.79516,2515.0,2514.7,0.6874]
[1750398338656,0.79516,2515.0,2514.9,0.79515]
[1750398338850,1.2512,2515.1,2514.9,0.79515]
[1750398339049,0.79514,2515.0,2514.9,0.79515]
[1750398340353,1.2512,2515.1,2514.7,0.6874]
[1750398340654,0.79521,2514.8,2514.7,1.48261]
[1750398341045,1.47431,2514.8,2514.7,0.6874]
[1750398341351,1.47431,2514.8,2514.4,3.17027932]
[1750398341352,2.0058,2514.8,2514.4,6.96231]
[1750398341557,0.79525,2514.7,2514.6,0.79525]
[1750398341855,1.3267,2514.7,2514.4,6.167]
[1750398342250,0.79528,2514.6,2514.5,0.7953]
[1750398343757,2.12196,2514.7,2514.6,0.79527]
[1750398343956,1.3267,2514.7,2514.4,6.167]
[1750398344153,0.79528,2514.6,2514.5,0.7953]
[1750398344348,1.3267,2514.7,2514.6,0.79527]
[1750398344548,2.12196,2514.7,2514.6,0.79527]
[1750398344755,0.79529,2514.6,2514.5,0.79529]
[1750398345555,0.7953,2514.5,2514.4,6.96231]
[1750398346057,0.7953,2514.5,2514.4,0.79531]
[1750398346558,0.79529,2514.6,2514.5,0.79528]
[1750398346748,0.79532,2514.5,2514.4,0.79531]
[1750398347060,0.79529,2514.6,2514.5,0.79529]
[1750398347959,0.79531,2514.5,2514.4,0.79531]
[1750398348258,2.08249,2514.6,2514.5,0.7953]
[1750398352360,1.2872,2514.6,2514.5,0.7953]
[1750398353155,4.00306,2514.7,2514.6,0.79527]
[1750398354366,3.2078,2514.7,2514.6,3.96554932]
[1750398354862,4.00304,2514.7,2514.6,3.96554932]
[1750398355368,3.52581001,2514.7,2514.6,4.58694254]
[1750398355569,2.73057001,2514.7,2514.6,4.58694254]
[1750398356368,3.52581001,2514.7,2514.6,4.58694254]
[1750398356869,0.79524,2514.7,2514.6,4.58694254]
[1750398357669,0.79524,2514.7,2514.6,1.41665862]
[1750398358071,0.79524,2514.7,2514.6,0.79527]
[1750398358368,0.79524,2514.7,2514.6,1.41666257]
[1750398358669,0.79524,2514.7,2514.6,1.41666341]
[1750398359269,0.79524,2514.7,2514.6,0.79527]
[1750398359465,0.79524,2514.7,2514.6,1.41666319]
[1750398359666,0.79524,2514.7,2514.6,0.79527]
[1750398360269,0.86463781,2514.5,2514.4,3.96559932]
[1750398360468,0.06933781,2514.5,2514.4,3.96559932]
[1750398360668,0.86463781,2514.5,2514.4,0.79532]
[1750398361061,0.06933781,2514.5,2514.4,0.79532]
[1750398361367,0.86463781,2514.5,2514.4,0.79532]
[1750398361567,0.06933781,2514.5,2514.4,0.79532]
[1750398361767,0.06933781,2514.5,2514.4,3.96559932]
[1750398367973,0.06933781,2514.5,2514.4,5.31919932]
[1750398375685,0.06933781,2514.5,2514.4,3.96559932]
[1750398380488,0.06933781,2514.5,2514.4,5.22409932]
[1750398381992,0.06933781,2514.5,2514.4,35.46709932]
[1750398382491,0.06933781,2514.5,2514.4,5.22409932]
[1750398382683,0.06933781,2514.5,2514.4,35.46709932]
[1750398387288,0.06933781,2514.5,2514.4,34.20859932]
[1750398387490,0.06933781,2514.5,2514.4,3.96559932]
[1750398387699,0.06933781,2514.5,2514.4,34.20759932]
[1750398388288,0.06933781,2514.5,2514.4,3.96559932]
[1750398388495,0.06933781,2514.5,2514.4,34.20759932]
[1750398388688,0.06933781,2514.5,2514.4,3.96559932]
[1750398388994,0.06933781,2514.5,2514.4,34.20659932]
[1750398389294,0.06933781,2514.5,2514.4,3.96559932]
[1750398389488,0.06933781,2514.5,2514.4,6.162]
[1750398389795,0.79536,2514.3,2514.2,6.162]
[1750398390089,0.79543,2514.1,2514.0,30.45707932]
[1750398390291,1.15361733,2514.3,2514.1,0.79543]
[1750398390292,2.0445,2514.2,2514.1,0.79543]
[1750398390988,0.6763,2514.2,2514.1,0.79543]
[1750398395800,0.74563781,2514.2,2514.1,0.79543]
[1750398396800,0.74563781,2514.2,2514.1,28.04470932]
[1750398397301,1.54103781,2514.2,2514.1,28.04470932]
[1750398398002,0.79543,2514.1,2514.0,4.00324]
[1750398398294,2.14663,2514.1,2514.0,28.08324]
[1750398398499,1.3512,2514.1,2514.0,28.08324]
[1750398399900,1.54104781,2514.2,2514.1,0.79543]
[1750398400293,1.54104781,2514.2,2514.1,3.96570932]
[1750398401188,1.54104781,2514.2,2514.1,3.17027932]
[1750398401499,0.79543,2514.1,2514.0,4.00326]
[1750398402304,2.17093,2514.1,2514.0,4.00326]
[1750398403395,0.89820278,2514.1,2514.0,4.62474069]
[1750398403595,0.89820278,2514.1,2514.0,4.00326]
[1750398403802,1.54105781,2514.2,2514.1,0.79543]
[1750398404097,0.74563781,2514.2,2514.1,0.62148027]
[1750398404298,1.54104781,2514.2,2514.1,1.41691027]
[1750398405304,1.54104781,2514.2,2514.1,0.79543]
[1750398405602,1.54104781,2514.2,2514.1,1.41690721]
[1750398406104,1.54104781,2514.2,2514.1,1.41690508]
[1750398406293,1.54104781,2514.2,2514.1,0.79543]
[1750398406492,1.54104781,2514.2,2514.1,1.41690501]
[1750398406798,1.54104781,2514.2,2514.1,0.62147501]
[1750398407194,0.79543,2514.1,2514.0,3.2078]
[1750398407397,2.12343,2514.1,2514.0,3.82931184]
[1750398407903,2.12343,2514.1,2514.0,3.82933305]
[1750398408206,2.12343,2514.1,2514.0,0.62153305]
[1750398408907,0.79546,2514.0,2513.9,0.79549]
[1750398409107,0.79546,2514.0,2513.9,1.41703996]
[1750398409304,0.79546,2514.0,2513.9,0.62154898]
[1750398409608,0.79546,2514.0,2513.9,1.41703898]
[1750398410009,0.79546,2514.0,2513.9,1.41702041]
[1750398410507,0.79546,2514.0,2513.9,0.79549]
[1750398410808,0.79546,2514.0,2513.9,1.41701963]
[1750398411005,1.16878584,2514.1,2513.9,0.62152963]
[1750398411207,1.96421584,2514.1,2514.0,0.62153264]
[1750398412009,0.79549,2513.9,2513.8,3.96579932]
[1750398412806,0.79548,2514.0,2513.9,0.79548]
[1750398413212,0.79549,2513.9,2513.8,3.96577932]
[1750398415611,1.42628,2514.0,2513.9,0.79549]
[1750398415913,0.79548,2514.0,2513.9,0.79549]
[1750398420014,0.79545,2514.1,2514.0,0.79545]
[1750398420220,1.94891976,2514.1,2514.0,0.79545]
[1750398422221,1.15346976,2514.1,2514.0,0.79545]
[1750398423112,1.15346976,2514.1,2514.0,3.96572932]
[1750398423306,0.06933781,2514.2,2514.1,0.79543]
[1750398423506,1.222979,2514.2,2514.1,1.42243]
[1750398424116,2.018389,2514.2,2514.1,1.42243]
[1750398424321,1.94905119,2514.2,2514.1,0.627]
[1750398425022,1.94905119,2514.2,2514.1,1.42243]
[1750398426216,1.15364119,2514.2,2514.1,1.42243]
[1750398426421,0.19903601,2514.2,2514.1,3.37172127]
[1750398427525,0.19903601,2514.2,2514.1,3.37170887]
[1750398427716,0.19903601,2514.2,2514.1,2.75023]
[1750398428023,0.19903601,2514.2,2514.1,3.37170902]
[1750398428820,0.19903601,2514.2,2514.1,2.75023]
[1750398429024,0.19903601,2514.2,2514.1,3.37170885]
[1750398429413,0.7954,2514.2,2514.1,2.75023]
[1750398429618,0.7954,2514.2,2514.1,1.24849072]
[1750398429813,0.7954,2514.2,2514.1,0.62149072]
[1750398430018,0.79543,2514.1,2514.0,0.79545]
[1750398430222,0.79543,2514.1,2514.0,1.41697548]
[1750398430522,0.86476781,2514.1,2514.0,1.41696858]
[1750398430824,0.86476781,2514.1,2514.0,0.62151858]
[1750398431324,0.86476781,2514.1,2514.0,1.41697858]
[1750398431521,0.86476781,2514.1,2514.0,0.62151858]
[1750398431726,0.79546,2514.0,2513.9,1.42907]
[1750398431926,0.79546,2514.0,2513.9,2.05059418]
[1750398432222,0.79546,2514.0,2513.9,2.05059502]
[1750398432724,0.79546,2514.0,2513.9,0.62152502]
[1750398432930,0.79552,2513.8,2513.7,0.79554]
[1750398433132,0.79549,2513.9,2513.8,0.79551]
[1750398433325,0.79549,2513.9,2513.8,1.41710395]
[1750398434233,0.79549,2513.9,2513.8,0.62159395]
[1750398434430,0.79552,2513.8,2513.7,0.79554]
[1750398435835,0.79557,2513.7,2513.6,0.79557]
[1750398436130,11.38722713,2514.1,2513.4,6.47411236]
[1750398436131,0.79562,2513.5,2513.4,0.79563]
[1750398436528,0.79561,2513.6,2513.5,0.79562]
[1750398436730,0.79558,2513.7,2513.6,0.79559]
[1750398437427,1.44124,2513.8,2513.4,1.9915]
[1750398437642,0.79556,2513.7,2513.6,0.79557]
[1750398440333,0.79554,2513.8,2513.7,0.79555]
[1750398441633,1.94293779,2513.8,2513.7,0.79555]
[1750398442040,1.14739779,2513.8,2513.7,0.79555]
[1750398442837,1.94291779,2513.8,2513.7,0.79555]
[1750398443637,1.14739779,2513.8,2513.7,0.79555]
[1750398445240,1.94293779,2513.8,2513.7,0.79555]
[1750398445442,1.94293779,2513.8,2513.6,3.04860816]
[1750398445635,2.01236819,2513.7,2513.6,3.04860816]
[1750398445944,1.21681819,2513.7,2513.6,3.84417816]
[1750398446631,0.06933781,2513.7,2513.6,3.84417816]
[1750398446836,0.06933781,2513.7,2513.6,5.09797816]
[1750398453146,0.06933781,2513.7,2513.6,5.76017816]
[1750398455859,0.86488781,2513.7,2513.6,4.50637816]
[1750398456155,0.86488781,2513.7,2513.6,3.71080816]
[1750398456356,0.79559,2513.6,2513.5,0.7956]
[1750398456563,0.79562,2513.5,2513.4,1.42411]
[1750398457156,2.84061,2513.6,2513.5,0.79562]
[1750398457364,1.47981,2513.6,2513.5,0.79562]
[1750398457564,0.6842,2513.6,2513.4,0.6285]
[1750398457868,1.4798,2513.6,2513.5,0.79562]
[1750398458259,0.86491781,2513.7,2513.6,0.79559]
[1750398458859,0.79559,2513.6,2513.5,3.96588932]
[1750398459064,0.79568,2513.3,2513.2,0.7957]
[1750398459361,0.79567,2513.4,2513.3,0.79568]
[1750398459561,1.9454864,2513.4,2513.3,0.79568]
[1750398460260,0.79567,2513.4,2513.3,0.79568]
[1750398460465,0.79567,2513.4,2513.3,3.96595932]
[1750398460667,1.47984,2513.5,2513.4,0.79565]
[1750398460865,2.62938686,2513.5,2513.4,0.79565]
[1750398461064,2.62938686,2513.5,2513.4,1.43275]
[1750398461264,2.62938686,2513.5,2513.4,0.6371]
[1750398462967,0.79574,2513.1,2513.0,4.66195]
[1750398463161,0.79574,2513.1,2513.0,5.31305]
[1750398463669,0.79573,2513.2,2513.1,0.79573]
[1750398463872,0.6436,2513.4,2513.0,8.00973064]
[1750398464177,0.6436,2513.4,2513.3,0.79568]
[1750398464178,1.43926,2513.4,2513.3,0.79568]
[1750398464469,2.58861348,2513.4,2513.3,0.79568]
[1750398464669,2.58861348,2513.4,2513.3,1.44678]
[1750398465073,2.58861348,2513.4,2513.3,0.6511]
[1750398465275,2.58861348,2513.4,2513.3,1.44678]
[1750398465478,2.58861348,2513.4,2513.3,0.6511]
[1750398466079,0.79568,2513.3,2513.2,0.79568]
[1750398467077,1.43927,2513.4,2513.3,0.79568]
[1750398467972,0.79569,2513.3,2513.2,0.79569]
[1750398468673,1.43927,2513.4,2513.3,0.79568]
[1750398469177,0.6436,2513.4,2513.3,0.79568]
[1750398470880,0.71293781,2513.4,2513.3,0.79568]
[1750398473780,1.50858781,2513.4,2513.3,0.79568]
[1750398475081,0.71293781,2513.4,2513.3,0.79568]
[1750398477584,0.06933781,2513.4,2513.3,3.96595932]
[1750398478588,0.06933781,2513.4,2513.3,7.17375932]
[1750398480582,0.06933781,2513.4,2513.3,4.00348]
[1750398483490,1.21875044,2513.4,2513.3,4.00348]
[1750398484692,1.21875044,2513.4,2513.3,0.79568]
[1750398487093,2.01440044,2513.4,2513.3,0.79568]
[1750398488598,1.21875044,2513.4,2513.3,0.79568]
[1750398496399,1.21875044,2513.4,2513.3,7.17375932]
[1750398496604,0.06933781,2513.4,2513.3,13.32575932]
[1750398497703,0.06933781,2513.4,2513.3,37.39175932]
[1750398498707,7.81e-06,2513.4,2513.3,42.39175932]
[1750398504303,7.81e-06,2513.4,2513.3,37.39175932]
[1750398504507,7.81e-06,2513.4,2513.3,42.39175932]
[1750398509006,7.81e-06,2513.4,2513.3,7.17375932]
[1750398509311,7.81e-06,2513.4,2513.3,37.38275932]
[1750398515430,7.81e-06,2513.4,2513.3,34.17495932]
[1750398515620,7.81e-06,2513.4,2513.3,37.38275932]
[1750398521027,7.81e-06,2513.4,2513.3,34.17495932]
[1750398521429,7.81e-06,2513.4,2513.3,37.38275932]
[1750398528335,7.81e-06,2513.4,2513.3,34.17495932]
[1750398528537,7.81e-06,2513.4,2513.3,37.38275932]
[1750398529936,7.81e-06,2513.4,2513.3,13.32175932]
[1750398530134,7.81e-06,2513.4,2513.3,37.37775932]
[1750398531233,7.81e-06,2513.4,2513.3,13.32175932]
[1750398531425,7.81e-06,2513.4,2513.3,37.37775932]
[1750398538131,7.81e-06,2513.4,2513.3,10.14748]
[1750398538340,7.81e-06,2513.4,2513.3,34.20148]
[1750398540443,7.81e-06,2513.4,2513.3,37.37175932]
[1750398545355,7.81e-06,2513.4,2513.3,28.05748]
[1750398545843,7.81e-06,2513.4,2513.3,4.00348]
[1750398546050,7.81e-06,2513.4,2513.3,28.05748]
[1750398548549,7.81e-06,2513.4,2513.3,31.22775932]
[1750398548948,7.81e-06,2513.4,2513.3,28.05748]
[1750398549147,7.81e-06,2513.4,2513.3,31.22775932]
[1750398549850,7.81e-06,2513.4,2513.3,7.17375932]
[1750398550051,7.81e-06,2513.4,2513.3,31.22675932]
[1750398550750,7.81e-06,2513.4,2513.3,31.89935932]
[1750398564660,7.81e-06,2513.4,2513.3,28.69155932]
[1750398564860,7.81e-06,2513.4,2513.3,31.89935932]
[1750398565163,7.81e-06,2513.4,2513.3,4.67608]
[1750398565355,7.81e-06,2513.4,2513.3,28.72508]
[1750398567768,7.81e-06,2513.4,2513.3,4.00348]
[1750398568070,7.81e-06,2513.4,2513.3,7.17375932]
[1750398569769,7.81e-06,2513.4,2513.3,3.96595932]
[1750398571564,7.81e-06,2513.4,2513.3,5.30265932]
[1750398577189,7.81e-06,2513.4,2513.3,34.15295932]
[1750398580593,7.81e-06,2513.4,2513.3,10.10695932]
[1750398580789,7.81e-06,2513.4,2513.3,34.15295932]
[1750398581290,7.81e-06,2513.4,2513.3,3.96595932]
[1750398581484,7.81e-06,2513.4,2513.3,0.79568]
[1750398581683,7.81e-06,2513.4,2513.3,24.84068]
[1750398582183,1.30210781,2513.4,2513.3,24.84068]
[1750398584383,7.81e-06,2513.4,2513.3,28.01095932]
[1750398585188,7.81e-06,2513.4,2513.3,28.66085932]
[1750398587088,7.81e-06,2513.4,2513.3,30.01915932]
[1750398589095,7.81e-06,2513.4,2513.3,5.97415932]
[1750398589391,7.81e-06,2513.4,2513.3,28.65985932]
[1750398592397,7.81e-06,2513.4,2513.3,30.02615932]
[1750398602101,7.81e-06,2513.4,2513.3,28.65985932]
[1750398603404,7.81e-06,2513.4,2513.3,30.01135932]
[1750398613503,7.81e-06,2513.4,2513.3,33.21915932]
[1750398620009,0.67490781,2513.9,2513.8,0.79552]
[1750398620205,0.67490781,2513.9,2513.8,28.00179932]
[1750398620809,0.6914,2514.0,2513.9,0.79549]
[1750398621010,1.31,2514.4,2514.3,0.79536]
[1750398621215,3.13001726,2514.4,2514.3,24.83136]
[1750398621414,8.13001726,2514.4,2514.3,24.83136]
[1750398622615,3.13001726,2514.4,2514.3,24.83136]
[1750398625812,6.37807932,2514.9,2514.6,0.79525]
[1750398626121,0.6821,2514.4,2514.3,0.79536]
[1750398626415,0.6821,2514.4,2514.3,30.96936]
[1750398626911,0.6821,2514.4,2514.3,0.79536]
[1750398627111,1.9769,2514.4,2514.3,30.97336]
[1750398629510,1.9769,2514.4,2514.3,0.79536]
[1750398629717,1.9769,2514.4,2514.3,30.96636]
[1750398631716,1.9769,2514.4,2514.3,6.92736]
[1750398631919,1.9769,2514.4,2514.3,30.96936]
[1750398634019,1.9769,2514.4,2514.3,0.79536]
[1750398634218,2.04623781,2514.4,2514.3,24.83436]
[1750398637115,0.75143781,2514.4,2514.3,24.83436]
[1750398638425,2.02623781,2514.4,2514.3,24.83436]
[1750398639824,2.02623781,2514.4,2514.3,24.82636]
[1750398644930,2.82156781,2514.4,2514.3,24.82636]
[1750398646128,2.02623781,2514.4,2514.3,24.82636]
[1750398646527,2.02623781,2514.4,2514.3,24.029]
[1750398646828,2.82156781,2514.4,2514.3,24.82436]
[1750398647027,0.79543,2514.1,2514.0,4.00325]
[1750398647231,0.79543,2514.1,2514.0,28.03225]
[1750398648534,0.79543,2514.1,2514.0,3.2078]
[1750398648732,2.11933,2514.1,2514.0,4.00326]
[1750398648933,1.3239,2514.1,2514.0,4.00326]
[1750398649124,2.11933,2514.1,2514.0,4.00326]
[1750398649634,2.11933,2514.1,2514.0,3.2078]
[1750398650432,2.11933,2514.1,2514.0,4.00326]
[1750398651734,2.11933,2514.1,2514.0,3.2078]
[1750398652035,0.79543,2514.1,2514.0,4.00326]
[1750398657137,0.79543,2514.1,2514.0,3.2078]
[1750398657738,0.79546,2514.0,2513.9,0.79547]
[1750398659439,0.79545,2514.1,2514.0,0.79545]
[1750398659948,0.79547,2514.0,2513.9,0.79547]
[1750398660846,0.79545,2514.1,2514.0,0.79545]
[1750398661545,0.79547,2514.0,2513.9,0.79546]
[1750398662047,0.79545,2514.1,2514.0,0.79545]
[1750398663350,1.47132,2514.2,2514.1,0.79543]
[1750398663538,0.79542,2514.2,2514.1,0.79543]
[1750398664641,0.79539,2514.3,2514.2,0.79539]
[1750398664838,1.94700676,2514.3,2514.2,0.79539]
[1750398665546,0.7954,2514.2,2514.1,1.43901]
[1750398665949,0.7954,2514.2,2514.1,0.6436]
[1750398666443,0.79539,2514.3,2514.2,0.7954]
[1750398666644,1.1516834,2514.3,2514.2,0.7954]
[1750398667049,1.9470434,2514.3,2514.2,0.7954]
[1750398667747,1.1516834,2514.3,2514.2,0.7954]
[1750398667950,1.9470434,2514.3,2514.2,0.7954]
[1750398669048,0.7954,2514.2,2514.1,2.1078]
[1750398669451,0.7954,2514.2,2514.1,0.6436]
[1750398669737,0.7954,2514.2,2514.1,1.43903]
[1750398670247,1.94620408,2514.2,2514.1,1.43903]
[1750398673639,1.15080408,2514.2,2514.1,1.43903]
[1750398674650,1.94620408,2514.2,2514.1,1.43903]
[1750398674850,1.15080408,2514.2,2514.1,1.43903]
[1750398675652,1.94620408,2514.2,2514.1,1.43903]
[1750398676246,1.15080408,2514.2,2514.1,1.43903]
[1750398676753,1.94620408,2514.2,2514.1,1.43903]
[1750398677451,1.15080408,2514.2,2514.1,1.43903]
[1750398677654,0.79539,2514.3,2514.2,0.79539]
[1750398678153,1.94780569,2514.3,2514.2,0.79539]
[1750398679046,1.15241569,2514.3,2514.2,0.79539]
[1750398679646,1.94777569,2514.3,2514.2,0.79539]
[1750398681351,1.15241569,2514.3,2514.2,0.79539]
[1750398682152,1.15241569,2514.3,2514.2,2.17139]
[1750398682451,1.15241569,2514.3,2514.2,2.81369]
[1750398685152,0.79534,2514.4,2514.3,0.79536]
[1750398685352,1.94763688,2514.4,2514.3,0.79536]
[1750398688859,4.47889073,2514.4,2514.3,0.79536]
[1750398690155,1.15229688,2514.4,2514.3,0.79536]
[1750398690862,1.94762688,2514.4,2514.3,0.79536]
[1750398691156,1.15229688,2514.4,2514.3,0.79536]
[1750398691861,1.15229688,2514.4,2514.3,2.11786]
[1750398692451,3.2078,2514.8,2514.7,0.79524]
[1750398692653,4.35912145,2514.8,2514.7,0.79524]
[1750398693061,4.35912145,2514.8,2514.7,1.47534]
[1750398693259,5.15433145,2514.8,2514.7,1.47534]
[1750398693961,4.35912145,2514.8,2514.7,1.47534]
[1750398694359,5.15433145,2514.8,2514.7,1.47534]
[1750398697263,4.35912145,2514.8,2514.7,1.47534]
[1750398698865,5.15433145,2514.8,2514.7,1.47534]
[1750398699364,4.35912145,2514.8,2514.7,1.47534]
[1750398699551,5.15433145,2514.8,2514.7,1.47534]
[1750398699958,4.35912145,2514.8,2514.7,1.47534]
[1750398700365,5.15432145,2514.8,2514.7,1.47534]
[1750398700560,8.31797502,2514.8,2514.7,1.47534]
[1750398700756,0.79525,2514.7,2514.6,0.79525]
[1750398700956,2.60627145,2514.7,2514.6,0.79525]
[1750398701462,1.45495,2514.7,2514.6,0.79525]
[1750398702064,2.60402543,2514.7,2514.6,0.79525]
[1750398702666,1.45495,2514.7,2514.6,0.79525]
[1750398706167,0.6597,2514.7,2514.6,0.79525]
[1750398706361,7.16668357,2514.8,2514.5,0.6522]
[1750398706362,7.16668357,2514.8,2514.7,0.79524]
[1750398706563,8.31479961,2514.8,2514.7,0.79524]
[1750398709261,8.38413742,2514.8,2514.7,0.79524]